fUSD/lending_fUSD_20240220
["ID","MTS","AMOUNT","RATE_DAILY","PERIOD"]
[314567573,1708428671017,-500.0,0.00036712,2]
[314567574,1708428671027,-1286.92,0.00036712,2]
[314567575,1708428671038,-538.32,0.00036712,2]
[314567576,1708428671047,-1144.29,0.00036712,2]
[314567577,1708428671057,-755.77,0.00036712,2]
[314567578,1708428671067,-500.0,0.00036712,2]
[314567579,1708428671078,-2001.39,0.00036712,2]
[314567580,1708428671092,-500.0,0.00036712,2]
[314567581,1708428671103,-500.0,0.00036712,2]
[314567582,1708428671113,-1514.61,0.00036712,2]
[314567583,1708428671124,-500.0,0.00036712,2]
[314567584,1708428671134,-500.0,0.00036712,2]
[314567585,1708428671144,-500.0,0.00036712,2]
[314567586,1708428671154,-841.62,0.00036712,2]
[314567587,1708428671164,-896.66,0.00036712,2]
[314567588,1708428671175,-500.0,0.00036712,2]
[314567589,1708428671184,-955.19,0.00036712,2]
[314567590,1708428671194,-759.4,0.00036712,2]
[314567591,1708428671206,-1219.95,0.00036712,2]
[314567592,1708428671216,-500.0,0.00036712,2]
[314567593,1708428671227,-500.82630834,0.00036712,2]
[314567594,1708428671237,-4914.38,0.00036712,2]
[314567595,1708428671246,-1960.91,0.00036712,2]
[314567596,1708428671256,-1232.52,0.00036712,2]
[314567597,1708428671266,-632.25,0.00036712,2]
[314567598,1708428671276,-506.75314005,0.00036712,2]
[314567599,1708428671286,-500.0,0.00036712,2]
[314567600,1708428671295,-2283.84,0.00036712,2]
[314567601,1708428671306,-7298.9,0.00036712,2]
[314567602,1708428671315,-500.0,0.00036712,2]
[314567603,1708428671325,-2168.59,0.00036712,2]
[314567604,1708428671336,-20540.21,0.00036712,2]
[314567605,1708428671346,-500.0,0.00036712,2]
[314567606,1708428671356,-500.0,0.00036712,2]
[314567607,1708428671365,-2164.58,0.00036712,2]
[314567608,1708428671375,-500.0,0.00036712,2]
[314567609,1708428671385,-500.0,0.00036712,2]
[314567610,1708428671395,-500.0,0.00036712,2]
[314567611,1708428671405,-840.87,0.00036712,2]
[314567612,1708428671415,-750.12,0.00036712,2]
[314567613,1708428671425,-881.59,0.00036712,2]
[314567614,1708428671434,-1166.03,0.00036712,2]
[314567615,1708428671444,-500.0,0.00036712,2]
[314567616,1708428671454,-500.0,0.00036712,2]
[314567617,1708428671464,-501.87,0.00036712,2]
[314567618,1708428671474,-4997.98,0.00036712,2]
[314567619,1708428671483,-500.0,0.00036712,2]
[314567620,1708428671493,-880.32,0.00036712,2]
[314567621,1708428671503,-500.0,0.00036712,2]
[314567622,1708428671513,-500.0,0.00036712,2]
[314567623,1708428671523,-690.76,0.00036712,2]
[314567624,1708428671533,-1448.63,0.00036712,2]
[314567625,1708428671543,-500.0,0.00036712,2]
[314567626,1708428671552,-905.43,0.00036712,2]
[314567627,1708428671562,-500.0,0.00036712,2]
[314567628,1708428671573,-500.0,0.00036712,2]
[314567629,1708428671585,-1005.05,0.00036712,2]
[314567630,1708428671595,-3198.4,0.00036712,2]
[314567631,1708428671604,-759.38,0.00036712,2]
[314567632,1708428671614,-500.0,0.00036712,2]
[314567633,1708428671624,-500.0,0.00036712,2]
[314567634,1708428671634,-500.0,0.00036712,2]
[314567635,1708428671647,-1446.16,0.00036712,2]
[314567636,1708428671657,-649.83,0.00036712,2]
[314567637,1708428671669,-1827.29,0.00036712,2]
[314567638,1708428671679,-622.17,0.00036712,2]
[314567639,1708428671688,-838.08,0.00036712,2]
[314567640,1708428671699,-500.0,0.00036712,2]
[314567641,1708428671709,-678.18,0.00036712,2]
[314567642,1708428671718,-727.92,0.00036712,2]
[314567643,1708428671728,-907.49,0.00036712,2]
[314567644,1708428671738,-6265.46,0.00036712,2]
[314567645,1708428671748,-500.0,0.00036712,2]
[314567646,1708428671758,-859.39,0.00036712,2]
[314567647,1708428671767,-500.0,0.00036712,2]
[314567648,1708428671777,-500.0,0.00036712,2]
[314567649,1708428671787,-866.49,0.00036712,2]
[314567650,1708428671797,-500.0,0.00036712,2]
[314567651,1708428671807,-3587.46,0.00036712,2]
[314567652,1708428671816,-500.0,0.00036712,2]
[314567653,1708428671826,-500.0,0.00036712,2]
[314567654,1708428671838,-1001.76,0.00036712,2]
[314567655,1708428671849,-187.56554756,0.00036712,2]
[314567656,1708428671859,-600.49,0.00036712,2]
[314567657,1708428671869,-737.98,0.00036712,2]
[314567658,1708428671879,-500.0,0.00036712,2]
[314567659,1708428671889,-1615.46,0.00036712,2]
[314567660,1708428671899,-500.0,0.00036712,2]
[314567661,1708428671909,-3233.84,0.00036712,2]
[314567662,1708428671920,-804.08,0.00036712,2]
[314567663,1708428671930,-2658.71,0.00036712,2]
[314567664,1708428671940,-759.27,0.00036712,2]
[314567665,1708428671950,-500.0,0.00036712,2]
[314567666,1708428671960,-1025.73,0.00036712,2]
[314567667,1708428671970,-1374.99,0.00036712,2]
[314567668,1708428671980,-633.58,0.00036712,2]
[314567669,1708428671990,-654.59,0.00036712,2]
[314567670,1708428672000,-500.0,0.00036712,2]
[314567671,1708428672010,-500.0,0.00036712,2]
[314567672,1708428672020,-720.34,0.00036712,2]
[314567673,1708428672030,-500.0,0.00036712,2]
[314567674,1708428672040,-750.78,0.00036712,2]
[314567675,1708428672050,-1574.12,0.00036712,2]
[314567676,1708428672059,-500.0,0.00036712,2]
[314567677,1708428672069,-552.85,0.00036712,2]
[314567678,1708428672079,-1149.16,0.00036712,2]
[314567679,1708428672090,-810.09,0.00036712,2]
[314567680,1708428672100,-2476.69,0.00036712,2]
[314567681,1708428672110,-1155.56,0.00036712,2]
[314567682,1708428672120,-1254.68,0.00036712,2]
[314567683,1708428672130,-1124.17,0.00036712,2]
[314567684,1708428672140,-1076.93,0.00036712,2]
[314567685,1708428672150,-590.14,0.00036712,2]
[314567686,1708428672159,-768.15,0.00036712,2]
[314567687,1708428672169,-621.95,0.00036712,2]
[314567688,1708428672179,-939.54,0.00036712,2]
[314567689,1708428672189,-1180.17,0.00036712,2]
[314567690,1708428672199,-500.0,0.00036712,2]
[314567691,1708428672209,-939.56,0.00036712,2]
[314567692,1708428672219,-500.0,0.00036712,2]
[314567693,1708428672229,-500.0,0.00036712,2]
[314567694,1708428672238,-1613.29,0.00036712,2]
[314567695,1708428672248,-686.66,0.00036712,2]
[314567696,1708428672259,-840.36,0.00036712,2]
[314567697,1708428672269,-640.13,0.00036712,2]
[314567698,1708428672279,-3991.12,0.00036712,2]
[314567699,1708428672289,-520.0,0.00036712,2]
[314567700,1708428672299,-1023.38,0.00036712,2]
[314567701,1708428672310,-692.3,0.00036712,2]
[314567702,1708428672320,-1621.7,0.00036712,2]
[314567703,1708428672330,-500.0,0.00036712,2]
[314567704,1708428672342,-500.0,0.00036712,2]
[314567705,1708428672351,-8295.38,0.00036712,2]
[314567706,1708428672362,-2486.09,0.00036712,2]
[314567707,1708428672372,-841.07,0.00036712,2]
[314567708,1708428672383,-513.54039986,0.00036712,2]
[314567709,1708428672393,-500.0,0.00036712,2]
[314567710,1708428672404,-1744.2,0.00036712,2]
[314567711,1708428672414,-1344.84,0.00036712,2]
[314567712,1708428672425,-673.36,0.00036712,2]
[314567713,1708428672435,-500.0,0.00036712,2]
[314567714,1708428672445,-685.99,0.00036712,2]
[314567715,1708428672455,-500.0,0.00036712,2]
[314567716,1708428672465,-500.0,0.00036712,2]
[314567717,1708428672475,-1329.24,0.00036712,2]
[314567718,1708428672485,-2449.79,0.00036712,2]
[314567719,1708428672496,-500.0,0.00036712,2]
[314567720,1708428672506,-500.0,0.00036712,2]
[314567721,1708428672516,-856.56,0.00036712,2]
[314567722,1708428672526,-524.15724077,0.00036712,2]
[314567723,1708428672537,-500.0,0.00036712,2]
[314567724,1708428672737,-559.34,0.00036712,2]
[314567725,1708428672779,-504.39,0.00036712,2]
[314567726,1708428672789,-500.0,0.00036712,2]
[314567727,1708428672799,-771.78,0.00036712,2]
[314567728,1708428672808,-500.0,0.00036712,2]
[314567729,1708428672817,-500.0,0.00036712,2]
[314567730,1708428672827,-500.0,0.00036712,2]
[314567731,1708428672839,-682.05,0.00036712,2]
[314567732,1708428672849,-547.61,0.00036712,2]
[314567733,1708428672859,-1060.07,0.00036712,2]
[314567734,1708428672868,-828.05,0.00036712,2]
[314567735,1708428672878,-628.37,0.00036712,2]
[314567736,1708428672887,-500.0,0.00036712,2]
[314567737,1708428672897,-887.17,0.00036712,2]
[314567738,1708428672906,-500.0,0.00036712,2]
[314567739,1708428672916,-673.43,0.00036712,2]
[314567740,1708428672926,-500.0,0.00036712,2]
[314567741,1708428672936,-734.03,0.00036712,2]
[314567742,1708428672945,-1738.82,0.00036712,2]
[314567743,1708428672955,-500.0,0.00036712,2]
[314567744,1708428672966,-500.0,0.00036712,2]
[314567745,1708428672975,-779.08,0.00036712,2]
[314567746,1708428672985,-543.22,0.00036712,2]
[314567747,1708428672995,-1012.35,0.00036712,2]
[314567748,1708428673005,-684.48,0.00036712,2]
[314567749,1708428673015,-500.0,0.00036712,2]
[314567750,1708428673025,-807.34,0.00036712,2]
[314567751,1708428673036,-986.67,0.00036712,2]
[314567752,1708428673046,-500.0,0.00036712,2]
[314567753,1708428673056,-1647.99,0.00036712,2]
[314567754,1708428673067,-644.0984679,0.00036712,2]
[314567755,1708428673078,-2456.88,0.00036712,2]
[314567756,1708428673090,-500.0,0.00036712,2]
[314567757,1708428673100,-1042.87,0.00036712,2]
[314567758,1708428673109,-1470.47,0.00036712,2]
[314567759,1708428673119,-283.13467646,0.00036712,2]
[314567760,1708428673129,-2585.94,0.00036712,2]
[314567761,1708428673139,-500.0,0.00036712,2]
[314567762,1708428673149,-500.0,0.00036712,2]
[314567763,1708428673158,-157.0212031,0.00036748,6]
[314567764,1708428673168,-1198.896169,0.00036779,2]
[314567765,1708428673177,-1141.71417735,0.00036782,9]
[314567766,1708428673187,-151.0,0.00036782,2]
[314567767,1708428673196,-18995.46425998,0.00036798,2]
[314567768,1708428673206,-18995.46425992,0.00036798,2]
[314567769,1708428673216,-18995.46425992,0.00036798,2]
[314567770,1708428673226,-18995.46425992,0.00036798,2]
[314567771,1708428673235,-18995.46425992,0.00036798,2]
[314567772,1708428673245,-36190.84,0.000368,7]
[314567773,1708428673255,-235.36,0.000368,2]
[314567774,1708428673265,-683.55543666,0.00036804,2]
[314567775,1708428673274,-500.0,0.00036807,2]
[314567776,1708428673283,-2859.22,0.00036807,2]
[314567777,1708428673293,-1223.88,0.00036807,2]
[314567778,1708428673302,-500.0,0.00036807,2]
[314567779,1708428673312,-500.0,0.00036807,2]
[314567780,1708428673321,-18995.46425992,0.00036836,2]
[314567781,1708428673330,-143853.3868417,0.00036836,2]
[314567782,1708428673342,-617.09438999,0.0003685,2]
[314567783,1708428673351,-3621.35242771,0.0003685,2]
[314567784,1708428673361,-156.17,0.00036886,2]
[314567785,1708428673371,-1000.0,0.00036899,2]
[314567786,1708428673380,-200.0,0.000369,2]
[314567787,1708428673390,-200.0,0.000369,2]
[314567788,1708428673399,-200.0,0.000369,2]
[314567789,1708428673408,-200.0,0.000369,2]
[314567790,1708428673418,-200.0,0.000369,2]
[314567791,1708428673427,-200.0,0.000369,2]
[314567792,1708428673436,-200.0,0.000369,2]
[314567793,1708428673445,-320.0,0.000369,2]
[314567794,1708428673455,-57038.05,0.000369,7]
[314567795,1708428673465,-200.0,0.000369,11]
[314567796,1708428673474,-1992.717286,0.000369,6]
[314567797,1708428673483,-200.0,0.000369,2]
[314567798,1708428673493,-1141.71417735,0.00036945,10]
[314567799,1708428673502,-500.0,0.00036986,2]
[314567800,1708428673512,-500.0,0.00036986,2]
[314567801,1708428673521,-500.0,0.00036986,2]
[314567802,1708428673530,-500.0,0.00036986,2]
[314567803,1708428673540,-641.09,0.00036986,2]
[314567804,1708428673550,-500.0,0.00036986,2]
[314567805,1708428673559,-500.0,0.00036986,2]
[314567806,1708428673569,-500.0,0.00036986,2]
[314567807,1708428673581,-500.0,0.00036986,2]
[314567808,1708428673593,-500.0,0.00036986,2]
[314567809,1708428673602,-500.0,0.00036986,2]
[314567810,1708428673612,-500.0,0.00036986,2]
[314567811,1708428673621,-500.0,0.00036986,2]
[314567812,1708428673632,-500.0,0.00036986,2]
[314567813,1708428673642,-500.0,0.00036986,2]
[314567814,1708428673652,-512.86,0.00036986,2]
[314567815,1708428673664,-627.53969694,0.00036986,2]
[314567816,1708428673673,-500.0,0.00036986,2]
[314567817,1708428673683,-500.0,0.00036986,2]
[314567818,1708428673693,-500.0,0.00036986,2]
[314567819,1708428673702,-500.0,0.00036986,2]
[314567820,1708428673711,-482.52894184,0.00036986,2]
[314567821,1708428673721,-535.94301087,0.00036986,2]
[314567822,1708428673731,-500.0,0.00036986,2]
[314567823,1708428673741,-500.0,0.00036986,2]
[314567824,1708428673751,-500.0,0.00036986,2]
[314567825,1708428673761,-1116.86,0.00036986,2]
[314567826,1708428673771,-500.0,0.00036986,2]
[314567827,1708428673780,-962.0,0.00036986,2]
[314567828,1708428673790,-500.0,0.00036986,2]
[314567829,1708428673799,-544.06618947,0.00036986,2]
[314567830,1708428673808,-521.7423845,0.00036986,2]
[314567831,1708428673819,-500.0,0.00036986,2]
[314567832,1708428673828,-500.0,0.00036986,2]
[314567833,1708428673838,-500.0,0.00036986,2]
[314567834,1708428673848,-575.423408,0.00036986,2]
[314567835,1708428673858,-1157.69,0.00036986,2]
[314567836,1708428673868,-500.0,0.00036986,2]
[314567837,1708428673877,-573.07222173,0.00036986,2]
[314567838,1708428673887,-500.0,0.00036986,2]
[314567839,1708428673896,-500.0,0.00036986,2]
[314567840,1708428673906,-500.0,0.00036986,2]
[314567841,1708428673915,-500.0,0.00036986,2]
[314567842,1708428673925,-632.15,0.00036986,2]
[314567843,1708428673935,-500.0,0.00036986,2]
[314567844,1708428673945,-500.0,0.00036986,2]
[314567845,1708428673954,-603.39905913,0.00036986,2]
[314567846,1708428673964,-500.0,0.00036986,2]
[314567847,1708428673973,-500.0,0.00036986,2]
[314567848,1708428673982,-500.0,0.00036986,2]
[314567849,1708428673991,-150.0,0.00036986,2]
[314567850,1708428674001,-300.0,0.00036986,7]
[314567851,1708428674010,-450.0,0.00036986,12]
[314567852,1708428674020,-600.0,0.00036986,17]
[314567853,1708428674029,-750.0,0.00036986,22]
[314567854,1708428674039,-900.0,0.00036986,27]
[314567855,1708428674048,-1050.0,0.00036986,32]
[314567856,1708428674057,-1270.86121668,0.00036986,37]
[314567857,1708428674067,-500.0,0.00036986,2]
[314567858,1708428674076,-500.0,0.00036986,2]
[314567859,1708428674085,-530.42558284,0.00036986,2]
[314567860,1708428674095,-500.0,0.00036986,2]
[314567861,1708428674105,-500.0,0.00036986,2]
[314567862,1708428674114,-500.0,0.00036986,2]
[314567863,1708428674123,-500.0,0.00036986,2]
[314567864,1708428674132,-500.0,0.00036986,2]
[314567865,1708428674141,-500.0,0.00036986,2]
[314567866,1708428674151,-500.0,0.00036986,2]
[314567867,1708428674160,-500.0,0.00036986,2]
[314567868,1708428674169,-500.0,0.00036986,2]
[314567869,1708428674179,-500.0,0.00036986,2]
[314567870,1708428674188,-500.0,0.00036986,2]
[314567871,1708428674197,-517.6058494,0.00036986,2]
[314567872,1708428674207,-565.54,0.00036986,2]
[314567873,1708428674216,-256.01859412,0.00036986,2]
[314567874,1708428674225,-500.0,0.00036986,2]
[314567875,1708428674234,-500.0,0.00036986,2]
[314567876,1708428674243,-500.0,0.00036986,2]
[314567877,1708428674252,-500.0,0.00036986,2]
[314567878,1708428674262,-500.0,0.00036986,2]
[314567879,1708428674271,-500.0,0.00036986,2]
[314567880,1708428674280,-500.0,0.00036986,2]
[314567881,1708428674290,-500.0,0.00036986,2]
[314567882,1708428674299,-520.78816079,0.00036986,2]
[314567883,1708428674310,-500.0,0.00036986,2]
[314567884,1708428674319,-500.0,0.00036986,2]
[314567885,1708428674328,-321.07343821,0.00036986,2]
[314567886,1708428674338,-500.0,0.00036986,2]
[314567887,1708428674348,-500.0,0.00036986,2]
[314567888,1708428674357,-500.0,0.00036986,2]
[314567889,1708428674367,-500.0,0.00036986,2]
[314567890,1708428674376,-500.0,0.00036986,2]
[314567891,1708428674386,-507.0,0.00036986,2]
[314567892,1708428674395,-500.0,0.00036986,2]
[314567893,1708428674404,-500.0,0.00036986,2]
[314567894,1708428674414,-500.0,0.00036986,2]
[314567895,1708428674423,-500.0,0.00036986,2]
[314567896,1708428674432,-228.17241819,0.00036986,2]
[314567897,1708428674441,-500.0,0.00036986,2]
[314567898,1708428674450,-500.0,0.00036986,2]
[314567899,1708428674460,-500.0,0.00036986,2]
[314567900,1708428674469,-500.0,0.00036986,2]
[314567901,1708428674479,-500.0,0.00036986,2]
[314567902,1708428674488,-500.0,0.00036986,2]
[314567903,1708428674497,-500.0,0.00036986,2]
[314567904,1708428674507,-500.0,0.00036986,2]
[314567905,1708428674517,-500.0,0.00036986,2]
[314567906,1708428674526,-500.0,0.00036986,2]
[314567907,1708428674535,-507.42,0.00036986,2]
[314567908,1708428674545,-500.0,0.00036986,2]
[314567909,1708428674555,-491.14781034,0.00036986,2]
[314567910,1708428674565,-500.0,0.00036986,2]
[314567911,1708428674574,-799.18,0.00036986,2]
[314567912,1708428674584,-521.8,0.00036986,2]
[314567913,1708428674594,-500.0,0.00036986,2]
[314567914,1708428674603,-500.0,0.00036986,2]
[314567915,1708428674613,-500.0,0.00036986,2]
[314567916,1708428674622,-500.0,0.00036986,2]
[314567917,1708428674631,-500.0,0.00036986,2]
[314567918,1708428674641,-157.38,0.00036986,2]
[314567919,1708428674650,-500.0,0.00036986,2]
[314567920,1708428674662,-500.0,0.00036986,2]
[314567921,1708428674671,-500.0,0.00036986,2]
[314567922,1708428674680,-500.0,0.00036986,2]
[314567923,1708428674689,-500.0,0.00036986,2]
[314567924,1708428674699,-500.0,0.00036986,2]
[314567925,1708428674708,-585.27571741,0.00036986,2]
[314567926,1708428674718,-500.0,0.00036986,2]
[314567927,1708428674727,-506.62,0.00036986,2]
[314567928,1708428674738,-500.0,0.00036986,2]
[314567929,1708428674748,-500.0,0.00036986,2]
[314567930,1708428674759,-500.0,0.00036986,2]
[314567931,1708428674769,-500.0,0.00036986,2]
[314567932,1708428674778,-878.5,0.00036986,2]
[314567933,1708428674788,-590.31,0.00036986,2]
[314567934,1708428674798,-649.42,0.00036986,2]
[314567935,1708428674808,-500.0,0.00036986,2]
[314567936,1708428674819,-500.0,0.00036986,2]
[314567937,1708428674829,-657.53,0.00036986,2]
[314567938,1708428674841,-500.0,0.00036986,2]
[314567939,1708428674850,-500.0,0.00036986,2]
[314567940,1708428674860,-500.0,0.00036986,2]
[314567941,1708428674869,-500.0,0.00036986,2]
[314567942,1708428674878,-561.53,0.00036986,2]
[314567943,1708428674888,-510.94,0.00036986,2]
[314567944,1708428674898,-500.0,0.00036986,2]
[314567945,1708428674907,-2751.38,0.00036986,2]
[314567946,1708428674917,-537.42,0.00036986,2]
[314567947,1708428674927,-500.0,0.00036986,2]
[314567948,1708428674938,-500.0,0.00036986,2]
[314567949,1708428674948,-500.0,0.00036986,2]
[314567950,1708428674959,-500.0,0.00036986,2]
[314567951,1708428674968,-1371.89,0.00036986,2]
[314567952,1708428674978,-500.0,0.00036986,2]
[314567953,1708428674988,-639.83,0.00036986,2]
[314567954,1708428674998,-500.0,0.00036986,2]
[314567955,1708428675008,-2100.88,0.00036986,2]
[314567956,1708428675018,-1430.51,0.00036986,2]
[314567957,1708428675027,-500.0,0.00036986,2]
[314567958,1708428675096,-500.0,0.00036986,2]
[314567959,1708428675106,-519.67,0.00036986,2]
[314567960,1708428675116,-500.0,0.00036986,2]
[314567961,1708428675125,-661.83,0.00036986,2]
[314567962,1708428675135,-1640.57,0.00036986,2]
[314567963,1708428675145,-1385.07,0.00036986,2]
[314567964,1708428675155,-557.87807358,0.00036986,2]
[314567965,1708428675164,-516.63,0.00036986,2]
[314567966,1708428675173,-500.0,0.00036986,2]
[314567967,1708428675183,-500.0,0.00036986,2]
[314567968,1708428675192,-500.0,0.00036986,2]
[314567969,1708428675201,-2406.39,0.00036986,2]
[314567970,1708428675210,-500.0,0.00036986,2]
[314567971,1708428675220,-1286.92,0.00036986,2]
[314567972,1708428675229,-538.32,0.00036986,2]
[314567973,1708428675238,-1144.29,0.00036986,2]
[314567974,1708428675248,-755.77,0.00036986,2]
[314567975,1708428675257,-500.0,0.00036986,2]
[314567976,1708428675267,-2001.39,0.00036986,2]
[314567977,1708428675276,-500.0,0.00036986,2]
[314567978,1708428675286,-500.0,0.00036986,2]
[314567979,1708428675295,-1514.61,0.00036986,2]
[314567980,1708428675304,-500.0,0.00036986,2]
[314567981,1708428675313,-500.0,0.00036986,2]
[314567982,1708428675323,-500.0,0.00036986,2]
[314567983,1708428675332,-841.62,0.00036986,2]
[314567984,1708428675343,-896.66,0.00036986,2]
[314567985,1708428675353,-500.0,0.00036986,2]
[314567986,1708428675362,-955.19,0.00036986,2]
[314567987,1708428675372,-759.4,0.00036986,2]
[314567988,1708428675381,-1219.95,0.00036986,2]
[314567989,1708428675390,-500.0,0.00036986,2]
[314567990,1708428675400,-4914.38,0.00036986,2]
[314567991,1708428675409,-1960.91,0.00036986,2]
[314567992,1708428675419,-1232.52,0.00036986,2]
[314567993,1708428675428,-632.25,0.00036986,2]
[314567994,1708428675437,-500.0,0.00036986,2]
[314567995,1708428675446,-2283.84,0.00036986,2]
[314567996,1708428675455,-7298.9,0.00036986,2]
[314567997,1708428675464,-500.0,0.00036986,2]
[314567998,1708428675474,-2168.59,0.00036986,2]
[314567999,1708428675483,-20540.21,0.00036986,2]
[314568000,1708428675492,-500.0,0.00036986,2]
[314568001,1708428675501,-500.0,0.00036986,2]
[314568002,1708428675510,-2164.58,0.00036986,2]
[314568003,1708428675520,-500.0,0.00036986,2]
[314568004,1708428675529,-500.0,0.00036986,2]
[314568005,1708428675538,-500.0,0.00036986,2]
[314568006,1708428675548,-840.87,0.00036986,2]
[314568007,1708428675558,-750.12,0.00036986,2]
[314568008,1708428675567,-881.59,0.00036986,2]
[314568009,1708428675576,-1166.03,0.00036986,2]
[314568010,1708428675585,-500.0,0.00036986,2]
[314568011,1708428675594,-500.0,0.00036986,2]
[314568012,1708428675604,-501.87,0.00036986,2]
[314568013,1708428675613,-4997.98,0.00036986,2]
[314568014,1708428675622,-500.0,0.00036986,2]
[314568015,1708428675631,-880.32,0.00036986,2]
[314568016,1708428675641,-500.0,0.00036986,2]
[314568017,1708428675653,-500.0,0.00036986,2]
[314568018,1708428675662,-690.76,0.00036986,2]
[314568019,1708428675671,-1448.63,0.00036986,2]
[314568020,1708428675680,-500.0,0.00036986,2]
[314568021,1708428675691,-905.43,0.00036986,2]
[314568022,1708428675700,-500.0,0.00036986,2]
[314568023,1708428675710,-500.0,0.00036986,2]
[314568024,1708428675720,-1005.05,0.00036986,2]
[314568025,1708428675731,-3198.4,0.00036986,2]
[314568026,1708428675740,-500.0,0.00036986,2]
[314568027,1708428675751,-759.38,0.00036986,2]
[314568028,1708428675760,-549.64756864,0.00036986,2]
[314568029,1708428675769,-500.0,0.00036986,2]
[314568030,1708428675779,-1446.16,0.00036986,2]
[314568031,1708428675788,-649.83,0.00036986,2]
[314568032,1708428675797,-1827.29,0.00036986,2]
[314568033,1708428675806,-622.17,0.00036986,2]
[314568034,1708428675815,-500.0,0.00036986,2]
[314568035,1708428675825,-838.08,0.00036986,2]
[314568036,1708428675835,-678.18,0.00036986,2]
[314568037,1708428675844,-727.92,0.00036986,2]
[314568038,1708428675854,-907.49,0.00036986,2]
[314568039,1708428675863,-6265.46,0.00036986,2]
[314568040,1708428675873,-500.0,0.00036986,2]
[314568041,1708428675882,-859.39,0.00036986,2]
[314568042,1708428675892,-500.0,0.00036986,2]
[314568043,1708428675901,-500.0,0.00036986,2]
[314568044,1708428675910,-866.49,0.00036986,2]
[314568045,1708428675920,-500.0,0.00036986,2]
[314568046,1708428675929,-3587.46,0.00036986,2]
[314568047,1708428675938,-500.0,0.00036986,2]
[314568048,1708428675947,-500.0,0.00036986,2]
[314568049,1708428675956,-1001.76,0.00036986,2]
[314568050,1708428675966,-600.49,0.00036986,2]
[314568051,1708428675975,-737.98,0.00036986,2]
[314568052,1708428675985,-500.0,0.00036986,2]
[314568053,1708428675994,-1615.46,0.00036986,2]
[314568054,1708428676003,-500.0,0.00036986,2]
[314568055,1708428676012,-3233.84,0.00036986,2]
[314568056,1708428676022,-804.08,0.00036986,2]
[314568057,1708428676031,-2658.71,0.00036986,2]
[314568058,1708428676041,-759.27,0.00036986,2]
[314568059,1708428676050,-500.0,0.00036986,2]
[314568060,1708428676059,-1025.73,0.00036986,2]
[314568061,1708428676069,-1374.99,0.00036986,2]
[314568062,1708428676079,-633.58,0.00036986,2]
[314568063,1708428676088,-654.59,0.00036986,2]
[314568064,1708428676098,-500.0,0.00036986,2]
[314568065,1708428676107,-500.0,0.00036986,2]
[314568066,1708428676117,-720.34,0.00036986,2]
[314568067,1708428676126,-500.0,0.00036986,2]
[314568068,1708428676136,-750.78,0.00036986,2]
[314568069,1708428676146,-1574.12,0.00036986,2]
[314568070,1708428676155,-500.0,0.00036986,2]
[314568071,1708428676164,-552.85,0.00036986,2]
[314568072,1708428676174,-1149.16,0.00036986,2]